fUST/lending_fUST_20240519
["ID","MTS","AMOUNT","RATE_DAILY","PERIOD"]
[327460176,1716081040657,-154.86062544,0.00016008,2]
[327460178,1716081040667,-1270.0,0.00016009,2]
[327460180,1716081040676,-4222.10020806,0.0001601,2]
[327460182,1716081040686,-417.06273246,0.0001601,2]
[327460184,1716081040696,-189.6344668,0.00016073,2]
[327460186,1716081040706,-9179.626714,0.00016119,2]
[327460188,1716081040715,-379.15486177,0.00016134,2]
[327460190,1716081040725,-186.83038505,0.00016135,2]
[327460192,1716081040735,-274.16966884,0.00016135,2]
[327460194,1716081040745,-7521.55479638,0.00016136,3]
[327460196,1716081040755,-13900.02330688,0.00016136,2]
[327460199,1716081040772,-16283.86720985,0.00016136,2]
[327460673,1716081046472,-443.88944205,0.00016135,2]
[327460675,1716081046481,-58704.10948327,0.00016136,2]
[327460677,1716081046491,-379.15486176,0.00016185,2]
[327460679,1716081046503,-71779.45181971,0.00016234,3]
[327460681,1716081046512,-24573.80506577,0.00016234,2]
[327460919,1716082232731,-913.24602737,9.878e-05,2]
[327463196,1716082637874,4056.97221216,0.00024,60]
[327463198,1716082920829,-550.73813834,8.891e-05,2]
[327463199,1716082931153,-550.73813834,8.89e-05,2]
[327463200,1716082971972,-8500.0,8.665e-05,2]
[327463201,1716083000402,-328.36363781,8.663e-05,2]
[327463202,1716083000427,-154.86062544,8.664e-05,2]
[327463203,1716083000450,-366.77573675,8.665e-05,2]
[327463204,1716083013724,2000.0,0.0002,9]
[327463238,1716083433063,-5213.90784143,8.565e-05,2]
[327463240,1716083433072,-2114.69992538,8.906e-05,2]
[327463242,1716083433082,-1339.07145765,8.907e-05,2]
[327463243,1716083433093,-550.73813834,9.868e-05,2]
[327463245,1716083433103,-913.50445131,9.869e-05,2]
[327463247,1716083433112,-9399.6682876,0.0001,2]
[327463248,1716083433122,-1450.64690735,0.00010804,2]
[327463249,1716083433131,-4222.60180257,0.00010842,2]
[327463250,1716083433141,-417.13177639,0.00010881,2]
[327463251,1716083433150,-753.11131861,0.000129,2]
[327463252,1716083433159,-21413.22145666,0.00013052,2]
[327463253,1716083433172,-839.27085456,0.00013052,2]
[327463254,1716083433183,-1048.245,0.00013052,2]
[327463302,1716083439449,-267.45300945,0.00013052,2]
[327463320,1716083441240,-1331.80967933,0.00013052,2]
[327463321,1716083441249,-753.11131855,0.00014168,2]
[327463322,1716083441258,-373.5531866,0.00014603,2]
[327463323,1716083441267,-150.0,0.00014796,3]
[327463324,1716083441276,-150.0,0.00014796,3]
[327463325,1716083441286,-154.86062544,0.00015,2]
[327463326,1716083441295,-154.86062544,0.00015422,2]
[327463327,1716083441304,-158.8152557,0.00015896,2]
[327463328,1716083441315,-981.41608078,0.00016034,2]
[327463360,1716083444428,-288.58391922,0.00016034,2]
[327463361,1716083444438,-566.8794507,0.00016035,2]
[327463362,1716083444448,-566.87945066,0.0001606,2]
[327463363,1716083444458,-191.89736824,0.00016073,2]
[327463364,1716083444469,-566.87945066,0.00016086,2]
[327463365,1716083444479,-566.87945066,0.00016111,2]
[327463366,1716083444489,-156.64723827,0.00016133,2]
[327463367,1716083444498,-260.29404441,0.00016133,2]
[327463368,1716083444509,-261.6079764,0.00016134,2]
[327463369,1716083444519,-155.02095465,0.00016134,2]
[327463370,1716083444529,-154.93870531,0.00016134,2]
[327463371,1716083444540,-154.96234369,0.00016134,2]
[327463372,1716083444553,-154.90567306,0.00016134,2]
[327463373,1716083444562,-154.99012428,0.00016134,2]
[327463374,1716083444572,-154.94581819,0.00016134,2]
[327463375,1716083444581,-155.02714451,0.00016134,2]
[327463376,1716083444590,-154.8784817,0.00016134,2]
[327463377,1716083444600,-155.05519373,0.00016134,2]
[327463378,1716083444610,-154.93351141,0.00016134,2]
[327463379,1716083444619,-155.03184887,0.00016134,2]
[327463380,1716083444629,-154.94113756,0.00016134,2]
[327463382,1716083444638,-720.99176492,0.00016134,2]
[327463383,1716083444647,-500.80160821,0.00016134,2]
[327463384,1716083444657,-9.62734069,0.00016134,2]
[327463402,1716083447128,-316.30321153,0.00016134,2]
[327463409,1716083773455,-9399.6682876,0.00015955,2]
[327463410,1716083773478,-2114.69992538,0.00015956,2]
[327463411,1716083773500,-154.86062544,0.00015956,2]
[327463412,1716083773522,-154.86062544,0.00015956,2]
[327463413,1716083773544,-1450.64690735,0.00015956,2]
[327463414,1716083773567,-550.73813834,0.00015957,2]
[327463415,1716083773592,-2963.7294411,0.00015967,2]
[327463416,1716083773613,-1270.0,0.00016,2]
[327463417,1716083773637,-564.83348893,0.00016034,2]
[327463418,1716083773662,-172.65908277,0.00016073,2]
[327463419,1716083773684,-2366.34405671,0.00016133,2]
[327463420,1716083773706,-123.83323568,0.00016134,2]
[327463421,1716083773730,-2637.5937492,0.00016134,2]
[327463422,1716083773753,-1898.38135689,0.00016134,2]
[327463423,1716083773776,-217.21260445,0.00016134,2]
[327463424,1716083773797,-207.78101987,0.00016134,2]
[327463425,1716083773820,-598.37973456,0.00016134,2]
[327463426,1716083773845,-1498.65153369,0.00016134,2]
[327463427,1716083773867,-186.82303112,0.00016134,2]
[327463428,1716083773891,-209.4559152,0.00016134,2]
[327463429,1716083773915,-383.97553726,0.00016134,2]
[327463430,1716083773940,-154.9283255,0.00016134,2]
[327463431,1716083773968,-154.92913808,0.00016134,2]
[327463432,1716083773989,-3063.52094563,0.00016134,2]
[327463433,1716083774012,-237.33250657,0.00016134,2]
[327463434,1716083774036,-239.14486793,0.00016134,2]
[327463435,1716083774060,-1279.86536976,0.00016134,2]
[327463436,1716083774184,-154.90912739,0.00016134,2]
[327463437,1716083774208,-529.29932109,0.00016134,2]
[327463438,1716083774231,-943.97106849,0.00016134,2]
[327463439,1716083774253,-245.47118009,0.00016134,2]
[327463440,1716083774276,-154.86062544,0.00016134,2]
[327463441,1716083774298,-19252.2187921,0.00016134,2]
[327463442,1716083774321,-2089.88571219,0.00016134,2]
[327463443,1716083774344,-285.74827739,0.00016134,2]
[327463444,1716083774368,-3372.55809041,0.00016134,2]
[327463445,1716083774389,-284.13108041,0.00016135,2]
[327463446,1716083774412,-155.05784303,0.00016135,2]
[327463447,1716083774434,-5153.7079387,0.00016135,3]
[327463448,1716083774456,-37842.61441273,0.00016135,2]
[327463449,1716083774479,-151.0,0.00016136,2]
[327463450,1716083774502,-151.0,0.00016136,2]
[327463451,1716083774524,-151.0,0.00016136,2]
[327463452,1716083774551,-151.0,0.00016136,2]
[327463453,1716083774575,-151.0,0.00016136,2]
[327463454,1716083774604,-151.0,0.00016138,2]
[327463455,1716083774629,-151.0,0.00016138,2]
[327463456,1716083774653,-151.0,0.00016138,2]
[327463457,1716083774677,-218.529139,0.00016138,2]
[327463458,1716083774702,-197.202232,0.00016138,2]
[327463459,1716083774728,-197.202232,0.00016138,2]
[327463460,1716083774754,-151.0,0.00016138,2]
[327463461,1716083774781,-155.883426,0.00016138,2]
[327463462,1716083774806,-151.0,0.00016138,2]
[327463463,1716083774830,-43001.90005109,0.00016138,2]
[327463464,1716083828093,-2679.06203142,0.00015955,2]
[327463465,1716083828116,-1339.07145765,0.00015955,2]
[327463466,1716083828138,-550.73813834,0.00015955,2]
[327463467,1716083854939,154.86062544,0.00015955,2]
[327463468,1716083857322,285.74827739,0.00015955,2]
[327463469,1716083857654,2089.88571219,0.00015955,2]
[327463470,1716083870890,154.86062544,0.00015955,2]
[327463471,1716083873302,285.74827739,0.00015955,2]
[327463472,1716083873656,2089.88571219,0.00015955,2]
[327463473,1716083888895,154.86062544,0.00015955,2]
[327463474,1716083893284,264.83066966,0.00015955,2]
[327463475,1716083897654,2089.88571219,0.00015955,2]
[327463476,1716083908947,229.69152168,0.00015955,2]
[327463477,1716083915660,2089.88571219,0.00015955,2]
[327463478,1716083938644,2089.88571219,0.00015955,2]
[327463479,1716083957666,2089.88571219,0.00015955,2]
[327463480,1716083975665,2089.88571219,0.00015955,2]
[327463481,1716083982526,4222.60180257,0.00015751,2]
[327463482,1716083983816,417.13177639,0.00015871,2]
[327463483,1716083995677,1261.93506552,0.00015955,2]
[327463484,1716084026650,1235.0,0.00016,2]
[327463485,1716084028572,150.0,0.00014663,3]
[327463491,1716084215593,24900.0,0.00015133,2]
[327463492,1716084221227,154.86062544,0.00015,2]
[327463493,1716084330733,154.86062544,0.00015,2]
[327463494,1716084333643,1270.0,0.00016,2]
[327463495,1716084366506,550.73813834,9.999e-05,2]
[327463498,1716084498124,417.13177639,0.00015724,2]
[327463499,1716084498528,4222.60180257,0.00015702,2]
[327463525,1716084632418,-514.25855081,0.00016059,2]
[327463526,1716084632430,-36.47958753,0.00016059,2]
[327463527,1716084632439,-154.86062544,0.0001606,2]
[327463528,1716084632449,-154.86062544,0.00016061,2]
[327463529,1716084632458,-230.3798847,0.00016062,2]
[327463530,1716084632470,-826.65721377,0.00016062,2]
[327463545,1716084638412,-212.96290153,0.00016062,2]
[327463548,1716084638422,-172.65908278,0.00016071,2]
[327463550,1716084638432,-1613.11724569,0.00016134,2]
[327463552,1716084638444,-1594.33318798,0.00016134,2]
[327463553,1716084638453,-218.18642815,0.00016134,2]
[327463555,1716084638464,-196.37694408,0.00016134,2]
[327463557,1716084638473,-494.22930284,0.00016136,2]
[327463559,1716084638483,-2285.11475241,0.00016137,2]
[327463560,1716084638492,-594.41251709,0.00016137,2]
[327463561,1716084638501,-1454.06840502,0.00016137,2]
[327463562,1716084638510,-196.37694404,0.00016185,2]
[327463563,1716084638519,-366.0829163,0.00016231,2]
[327463564,1716084638529,-236.19809017,0.00016234,2]
[327463565,1716084638538,-315.49094957,0.00016234,2]
[327463566,1716084638547,-398.53713203,0.00016234,2]
[327463567,1716084638557,-702.19428712,0.00016234,2]
[327463568,1716084638566,-526.90246246,0.00016234,2]
[327463569,1716084638575,-37024.57351291,0.00016235,2]
[327463620,1716084646392,-2082.02320773,0.00016235,2]
[327463629,1716084737090,1717.20601312,9.999e-05,2]
[327463630,1716084814824,24900.0,0.00015211,2]
[327463631,1716084836637,24613.34400777,0.0002,10]
[327463632,1716084862646,24613.34400777,0.0002,10]
[327463633,1716084877705,8694.38482751,0.0002,10]
[327463635,1716085071487,1270.0,0.00016,2]
[327463636,1716085074116,154.86062544,9.999e-05,2]
[327463637,1716085116392,417.13177639,0.00015908,2]
[327463638,1716085117207,4222.60180257,0.00015959,2]
[327463639,1716085142811,154.86062544,0.00015,2]
[327463640,1716085158280,125895.38677116,0.00023,30]
[327463641,1716085169069,550.73813834,9.999e-05,2]
[327463642,1716085249137,1717.20601312,9.999e-05,2]
[327463643,1716085311763,5209.86115774,0.00015211,2]
[327463649,1716085685379,154.86062544,0.00015,2]
[327463650,1716085725659,550.73813834,9.999e-05,2]
[327463651,1716085739254,1717.20601312,9.999e-05,2]
[327463685,1716085834078,-154.86062544,0.0001521,2]
[327463687,1716085834088,-853.02911577,0.00015211,2]
[327463717,1716085838577,-258.89243828,0.00015211,2]
[327463718,1716085838811,-447.7179012,0.00015211,2]
[327463745,1716085843626,-1674.79371648,0.00015211,2]
[327465451,1716085884619,24900.0,0.00014966,2]
[327465452,1716085936655,909.52383202,9.999e-05,2]
[327465459,1716086188819,1717.20601312,9.999e-05,2]
[327465460,1716086211685,550.73813834,9.999e-05,2]
[327465461,1716086220512,444.65,0.00010959,2]
[327465462,1716086231218,365.54,0.00010959,2]
[327465463,1716086241836,304.62,0.00010959,2]
[327465464,1716086252382,253.85,0.00010959,2]
[327465465,1716086262908,211.54,0.00010959,2]
[327465466,1716086273415,176.28,0.00010959,2]
[327465467,1716086276069,3858.91,0.00023,30]
[327465468,1716086284008,881.43,0.00010959,2]
[327465469,1716086302499,154.86062544,0.00015,2]
[327465472,1716086666452,1717.20601312,9.999e-05,2]
[327465473,1716086736043,154.86062544,0.00015,2]
[327465477,1716086945630,4222.60180257,0.00014974,2]
[327465478,1716086946475,417.13177639,0.00014824,2]
[327465479,1716086946806,2000.0,0.00023,30]
[327465482,1716086952380,715.68,0.000265,120]
[327465486,1716087016634,24900.0,0.00014872,2]
[327465517,1716087039008,-154.86062544,0.00015612,2]
[327465518,1716087039018,-1717.20601312,0.00015613,2]
[327465519,1716087039027,-438.20213967,0.00015614,2]
[327465520,1716087039038,-1270.0,0.00016,2]
[327465521,1716087039048,-178.78582673,0.00016137,2]
[327465522,1716087039058,-178.78582669,0.00016187,2]
[327465523,1716087039068,-12168.41888275,0.00016235,2]
[327465524,1716087039077,-2543.32320273,0.00016236,3]
[327465525,1716087039089,-33.53076662,0.00016236,3]
[327465526,1716087039099,-931.54539726,0.00016236,2]
[327465705,1716087041306,-495.45572168,0.00016236,2]
[327465727,1716087046848,-665.12874872,0.00016236,2]
[327465728,1716087088277,2005.0,0.00023,30]
[327465739,1716087502086,180.0,9.999e-05,2]
[327465740,1716087532023,1717.20601312,9.999e-05,2]
[327465746,1716088029672,1717.20601312,9.999e-05,2]
[327465840,1716088240639,-22367.81764544,0.00015131,2]
[327465841,1716088240652,-2532.18235456,0.00015131,2]
[327465843,1716088240663,-4222.60180257,0.00015986,2]
[327465844,1716088240673,-1270.0,0.00016,2]
[327465846,1716088240684,-417.13177639,0.00016111,2]
[327465847,1716088240694,-178.78582669,0.00016137,2]
[327465848,1716088240704,-1288.42698467,0.00016236,3]
[327465849,1716088240714,-5676.62994367,0.00016236,2]
[327465872,1716088243465,-814.87232,0.00016236,2]
[327465884,1716088246270,-529.90864898,0.00016236,2]
[327465886,1716088326919,2810.1280129,0.00015,2]
[327465890,1716088838229,150.0,0.00013426,3]
[327465891,1716088922731,7633.86367684,0.00015,2]
[327465892,1716088937357,300.0,0.000265,120]
[327465893,1716088946697,3977.24297563,0.00015,2]
[327465894,1716088962497,325.0,0.000265,120]
[327465895,1716088970770,3977.24297563,0.00015,2]
[327465896,1716088990778,3977.24297563,0.00015,2]
[327465897,1716089006779,3977.24297563,0.00015,2]
[327465898,1716089007365,154.87609912,0.0001485,2]
[327465899,1716089022783,3977.24297563,0.00015,2]
[327465900,1716089023394,154.87609912,0.00014702,2]
[327465901,1716089041442,157.25307374,0.00014702,2]
[327465902,1716089048781,3977.24297563,0.00015,2]
[327465903,1716089064822,3977.24297563,0.00015,2]
[327465904,1716089082786,3977.24297563,0.00015,2]
[327465905,1716089103048,3977.24297563,0.00015,2]
[327465906,1716089120786,3977.24297563,0.00015,2]
[327465907,1716089138785,2235.97335403,0.00015,2]
[327465917,1716089428438,150.0,0.00013442,3]
[327465936,1716089432251,-791.88365063,0.00015091,2]
[327466067,1716089438644,-5012.91802482,0.00015091,2]
[327466134,1716089440788,-14376.48686063,0.00015091,2]
[327466153,1716089446302,-4654.90764822,0.00015091,2]
[327466154,1716089446312,-200.0,0.00015614,2]
[327466155,1716089446322,-4222.60180257,0.00015897,2]
[327466156,1716089446332,-353.2111582,0.00015973,2]
[327466172,1716089564286,1717.20601312,9.999e-05,2]
[327466173,1716089597550,154.87609912,9.999e-05,2]
[327466174,1716089717742,303.0,0.000265,120]
[327466184,1716090029078,150.0,0.0001191,3]
[327466185,1716090040106,150.0,0.0001191,3]
[327466186,1716090040161,150.0,0.0001191,2]
[327466187,1716090040225,150.0,0.00012321,2]
[327466188,1716090066002,10000.0,0.00023,30]
[327466189,1716090075291,10000.0,0.00023,30]
[327466190,1716090087883,7526.3,0.00025,60]
[327466202,1716090296190,540.38593821,9.999e-05,2]
[327466309,1716090638233,-360.25729214,0.00015115,2]
[327466310,1716090638243,-346.1526573,0.00015116,2]
[327466311,1716090638252,-930.94102569,0.00015614,2]
[327466312,1716090638262,-417.13177639,0.00015766,2]
[327466313,1716090638274,-153.9,0.00015812,2]
[327466314,1716090638284,-227.202,0.00015812,2]
[327466315,1716090638294,-4222.60180257,0.00015822,2]
[327466316,1716090638304,-153.0,0.00016,2]
[327466317,1716090638313,-153.0,0.00016,2]
[327466318,1716090638323,-159.1101855,0.00016,2]
[327466319,1716090638331,-153.0,0.00016,2]
[327466320,1716090638340,-153.0,0.00016,2]
[327466321,1716090638349,-153.0,0.00016,2]
[327466322,1716090638358,-153.0,0.00016,2]
[327466323,1716090638367,-153.0,0.00016,2]
[327466324,1716090638376,-153.0,0.00016,2]
[327466325,1716090638385,-153.0,0.00016,2]
[327466326,1716090638394,-153.0,0.00016,2]
[327466327,1716090638404,-153.0,0.00016,2]
[327466328,1716090638413,-153.0,0.00016,2]
[327466329,1716090638422,-158.7288584,0.00016,2]
[327466330,1716090638431,-153.0,0.00016,2]
[327466331,1716090638440,-153.0,0.00016,2]
[327466332,1716090638450,-153.0,0.00016,2]
[327466333,1716090638459,-153.0,0.00016,2]
[327466334,1716090638469,-1270.0,0.00016,2]
[327466335,1716090638477,-153.0,0.00016,2]
[327466336,1716090638487,-169.43983306,0.00016073,2]
[327466337,1716090638496,-8500.0,0.00016073,2]
[327466338,1716090638505,-367.0955075,0.000161,2]
[327466339,1716090638515,-153.0,0.000161,2]
[327466340,1716090638524,-153.0,0.000161,2]
[327466341,1716090638533,-153.0,0.000161,2]
[327466342,1716090638542,-902.66130496,0.00016137,2]
[327466343,1716090638551,-456.74120443,0.00016137,2]
[327466344,1716090638560,-902.66130495,0.00016187,2]
[327466345,1716090638569,-644.21349234,0.00016236,3]
[327466346,1716090638578,-44757.99672491,0.00016236,2]
[327466356,1716090640488,-47491.19023386,0.00016236,2]
[327466357,1716090640498,-154.82968734,0.00016237,2]
[327466358,1716090640508,-902.66130495,0.00016238,2]
[327466359,1716090640518,-4018.97761502,0.00016238,2]
[327466360,1716090640629,-902.66130495,0.00016288,2]
[327466361,1716090640640,-37092.48766916,0.00016338,3]
[327466362,1716090640649,-151.0,0.00016338,2]
[327466363,1716090640658,-200.336156,0.00016338,2]
[327466364,1716090640667,-151.0,0.00016338,2]
[327466365,1716090640677,-151.0,0.00016338,2]
[327466366,1716090640686,-151.0,0.00016338,2]
[327466367,1716090640695,-151.0,0.00016338,2]
[327466368,1716090640704,-151.0,0.00016338,2]
[327466369,1716090640713,-151.0,0.00016338,2]
[327466370,1716090640722,-182.124913,0.00016338,2]
[327466371,1716090640732,-153.508453,0.00016338,2]
[327466372,1716090640744,-151.0,0.00016338,2]
[327466373,1716090640753,-151.0,0.00016338,2]
[327466374,1716090640763,-296.304592,0.00016338,2]
[327466375,1716090640772,-151.0,0.00016338,2]
[327466376,1716090640783,-151.0,0.00016338,2]
[327466377,1716090640792,-151.0,0.00016338,2]
[327466378,1716090640801,-297.664231,0.00016338,2]
[327466379,1716090640810,-151.0,0.00016338,2]
[327466380,1716090640822,-151.0,0.00016338,2]
[327466381,1716090640833,-199.932012,0.00016338,2]
[327466382,1716090640843,-902.66130495,0.00016338,2]
[327466383,1716090640852,-186.228491,0.00016338,2]
[327466384,1716090640861,-186.228491,0.00016338,2]
[327466385,1716090640871,-186.228491,0.00016338,2]
[327466386,1716090640882,-186.228491,0.00016338,2]
[327466387,1716090640891,-186.228491,0.00016338,2]
[327466388,1716090640900,-186.228491,0.00016338,2]
[327466389,1716090640909,-186.228491,0.00016338,2]
[327466390,1716090640919,-186.228491,0.00016338,2]
[327466391,1716090640928,-186.228491,0.00016338,2]
[327466392,1716090640937,-186.228491,0.00016338,2]
[327466393,1716090640947,-186.228491,0.00016338,2]
[327466394,1716090640956,-186.228491,0.00016338,2]
[327466395,1716090640966,-186.228491,0.00016338,2]
[327466396,1716090640975,-151.0,0.00016338,2]
[327466397,1716090640984,-186.228491,0.00016338,2]
[327466398,1716090640993,-151.524335,0.00016338,2]
[327466399,1716090641003,-186.228491,0.00016338,2]
[327466400,1716090641012,-186.228491,0.00016338,2]
[327466401,1716090641021,-186.228491,0.00016338,2]
[327466402,1716090641030,-186.228491,0.00016338,2]
[327466403,1716090641039,-225.91231,0.00016338,2]
[327466404,1716090641048,-151.0,0.00016338,2]
[327466405,1716090641057,-151.0,0.00016338,2]
[327466406,1716090641066,-151.0,0.00016338,2]
[327466407,1716090641075,-154.02287,0.00016338,2]
[327466408,1716090641084,-153.420198,0.00016338,2]
[327466409,1716090641093,-281.489363,0.00016338,2]
[327466410,1716090641102,-281.489363,0.00016338,2]
[327466411,1716090641111,-281.489363,0.00016338,2]
[327466412,1716090641120,-281.489363,0.00016338,2]
[327466413,1716090641129,-281.489363,0.00016338,2]
[327466414,1716090641139,-281.489363,0.00016338,2]
[327466415,1716090641149,-281.489363,0.00016338,2]
[327466416,1716090641158,-281.489363,0.00016338,2]
[327466417,1716090641168,-281.489363,0.00016338,2]
[327466418,1716090641177,-281.489363,0.00016338,2]
[327466419,1716090641187,-281.489363,0.00016338,2]
[327466420,1716090641196,-281.489363,0.00016338,2]
[327466421,1716090641206,-281.489363,0.00016338,2]
[327466422,1716090641215,-281.489363,0.00016338,2]
[327466423,1716090641224,-281.489363,0.00016338,2]
[327466424,1716090641233,-281.489363,0.00016338,2]
[327466425,1716090641242,-281.489363,0.00016338,2]
[327466426,1716090641252,-281.489363,0.00016338,2]
[327466427,1716090641261,-281.489363,0.00016338,2]
[327466428,1716090641271,-281.489355,0.00016338,2]
[327466429,1716090641280,-151.0,0.00016338,2]
[327466430,1716090641290,-151.0,0.00016338,2]
[327466431,1716090641299,-151.0,0.00016338,2]
[327466432,1716090641308,-151.0,0.00016338,2]
[327466433,1716090641318,-151.0,0.00016338,2]
[327466434,1716090641327,-151.0,0.00016338,2]
[327466435,1716090641336,-151.0,0.00016338,2]
[327466436,1716090641345,-151.0,0.00016338,2]
[327466437,1716090641354,-151.0,0.00016338,2]
[327466438,1716090641364,-151.0,0.00016338,2]
[327466439,1716090641373,-151.0,0.00016338,2]
[327466440,1716090641382,-151.0,0.00016338,2]
[327466441,1716090641391,-151.0,0.00016338,2]
[327466442,1716090641400,-151.0,0.00016338,2]
[327466443,1716090641410,-260.067769,0.00016338,2]
[327466444,1716090641419,-151.0,0.00016338,2]
[327466445,1716090641428,-276.605277,0.00016338,2]
[327466446,1716090641437,-523.684759,0.00016338,2]
[327466447,1716090641446,-523.684759,0.00016338,2]
[327466448,1716090641456,-523.684759,0.00016338,2]
[327466449,1716090641466,-523.684759,0.00016338,2]
[327466450,1716090641475,-523.684759,0.00016338,2]
[327466451,1716090641484,-523.684759,0.00016338,2]
[327466452,1716090641493,-523.684759,0.00016338,2]
[327466453,1716090641502,-523.684759,0.00016338,2]
[327466454,1716090641511,-523.684759,0.00016338,2]
[327466455,1716090641520,-523.684759,0.00016338,2]
[327466456,1716090641529,-523.684759,0.00016338,2]
[327466457,1716090641539,-523.684759,0.00016338,2]
[327466458,1716090641548,-523.684759,0.00016338,2]
[327466459,1716090641557,-523.684759,0.00016338,2]
[327466460,1716090641567,-523.684759,0.00016338,2]
[327466461,1716090641576,-523.684759,0.00016338,2]
[327466462,1716090641585,-523.684759,0.00016338,2]
[327466463,1716090641595,-523.684759,0.00016338,2]
[327466464,1716090641604,-523.684759,0.00016338,2]
[327466465,1716090641613,-523.68475,0.00016338,2]
[327466466,1716090641624,-349.750258,0.00016338,2]
[327466467,1716090641633,-349.750258,0.00016338,2]
[327466468,1716090641643,-349.750258,0.00016338,2]
[327466469,1716090641653,-349.750258,0.00016338,2]
[327466470,1716090641664,-349.750258,0.00016338,2]
[327466471,1716090641673,-349.750258,0.00016338,2]
[327466472,1716090641683,-349.750258,0.00016338,2]
[327466473,1716090641692,-349.750258,0.00016338,2]
[327466474,1716090641702,-349.750258,0.00016338,2]
[327466475,1716090641712,-349.750258,0.00016338,2]
[327466476,1716090641721,-349.750258,0.00016338,2]
[327466477,1716090641730,-349.750258,0.00016338,2]
[327466478,1716090641742,-349.750258,0.00016338,2]
[327466479,1716090641751,-349.750258,0.00016338,2]
[327466480,1716090641761,-349.750258,0.00016338,2]
[327466481,1716090641770,-349.750258,0.00016338,2]
[327466482,1716090641779,-349.750258,0.00016338,2]
[327466483,1716090641788,-349.750258,0.00016338,2]
[327466484,1716090641798,-177.482008,0.00016338,2]
[327466485,1716090641807,-177.482008,0.00016338,2]
[327466486,1716090641816,-177.482008,0.00016338,2]
[327466487,1716090641825,-177.482008,0.00016338,2]
[327466488,1716090641835,-177.482008,0.00016338,2]
[327466489,1716090641844,-177.482008,0.00016338,2]
[327466490,1716090641853,-177.482008,0.00016338,2]
[327466491,1716090641863,-177.482008,0.00016338,2]
[327466492,1716090641872,-177.482008,0.00016338,2]
[327466493,1716090641881,-177.482008,0.00016338,2]
[327466494,1716090641890,-177.482008,0.00016338,2]
[327466495,1716090641899,-177.482008,0.00016338,2]
[327466496,1716090641909,-177.482008,0.00016338,2]
[327466497,1716090641918,-177.482008,0.00016338,2]
[327466498,1716090641928,-177.482008,0.00016338,2]
[327466499,1716090641938,-177.482008,0.00016338,2]
[327466500,1716090641947,-177.482008,0.00016338,2]
[327466501,1716090641955,-177.482008,0.00016338,2]
[327466502,1716090641964,-208.127262,0.00016338,2]
[327466503,1716090641974,-208.127262,0.00016338,2]
[327466504,1716090641984,-208.127262,0.00016338,2]
[327466505,1716090641993,-151.0,0.00016338,2]
[327466506,1716090642003,-208.127262,0.00016338,2]
[327466507,1716090642012,-151.0,0.00016338,2]
[327466508,1716090642023,-208.127262,0.00016338,2]
[327466509,1716090642033,-151.0,0.00016338,2]
[327466510,1716090642043,-208.127262,0.00016338,2]
[327466511,1716090642052,-208.127262,0.00016338,2]
[327466512,1716090642062,-151.0,0.00016338,2]
[327466513,1716090642072,-208.127262,0.00016338,2]
[327466514,1716090642081,-151.0,0.00016338,2]
[327466515,1716090642091,-208.127262,0.00016338,2]
[327466516,1716090642101,-151.0,0.00016338,2]
[327466517,1716090642110,-151.0,0.00016338,2]
[327466518,1716090642119,-208.127262,0.00016338,2]
[327466519,1716090642130,-151.0,0.00016338,2]
[327466520,1716090642141,-151.0,0.00016338,2]
[327466521,1716090642226,-208.127262,0.00016338,2]
[327466522,1716090642236,-208.127262,0.00016338,2]
[327466523,1716090642246,-208.127262,0.00016338,2]
[327466524,1716090642256,-208.127262,0.00016338,2]
[327466525,1716090642265,-208.127262,0.00016338,2]
[327466526,1716090642274,-208.127262,0.00016338,2]
[327466527,1716090642283,-208.127262,0.00016338,2]
[327466528,1716090642293,-208.127262,0.00016338,2]